lending/lending_fUSD_20250409
["ID","MTS","AMOUNT","RATE_DAILY","PERIOD"]
[357581859,1744195889367,-500.0,0.00055342,120]
[357581860,1744195889376,-500.0,0.00055342,120]
[357581861,1744195889385,-500.0,0.00055342,120]
[357581862,1744195889394,-500.0,0.00055342,120]
[357581863,1744195889404,-736.99,0.00055342,120]
[357581864,1744195889413,-500.0,0.00055342,120]
[357581865,1744195889423,-500.0,0.00055342,120]
[357581866,1744195889432,-500.0,0.00055342,120]
[357581868,1744195889441,-500.0,0.00055342,120]
[357581869,1744195889450,-500.0,0.00055342,120]
[357581870,1744195889459,-500.0,0.00055342,120]
[357581871,1744195889468,-500.0,0.00055342,120]
[357581872,1744195889477,-529.00573477,0.00055342,120]
[357581873,1744195889486,-500.0,0.00055342,120]
[357581874,1744195889495,-500.0,0.00055342,120]
[357581875,1744195889504,-500.0,0.00055342,120]
[357581876,1744195889513,-500.0,0.00055342,120]
[357581877,1744195889522,-500.0,0.00055342,120]
[357581878,1744195889531,-500.0,0.00055342,120]
[357581879,1744195889540,-500.0,0.00055342,120]
[357581880,1744195889549,-518.4799179,0.00055342,120]
[357581881,1744195889558,-500.0,0.00055342,120]
[357581882,1744195889569,-500.0,0.00055342,120]
[357581883,1744195889582,-538.62186435,0.00055342,120]
[357581884,1744195889591,-508.17864672,0.00055342,120]
[357581885,1744195889600,-500.0,0.00055342,120]
[357581886,1744195889610,-500.0,0.00055342,120]
[357581887,1744195889621,-500.0,0.00055342,120]
[357581888,1744195889630,-500.0,0.00055342,120]
[357581889,1744195889639,-500.0,0.00055342,120]
[357581890,1744195889649,-502.17882931,0.00055342,120]
[357581891,1744195889658,-500.0,0.00055342,120]
[357581892,1744195889667,-589.46,0.00055342,120]
[357581893,1744195889676,-500.0,0.00055342,120]
[357581894,1744195889684,-500.0,0.00055342,120]
[357581895,1744195889694,-205.07323045,0.00055342,120]
[357581896,1744195889703,-500.0,0.00055342,120]
[357581897,1744195889711,-500.0,0.00055342,120]
[357581898,1744195889720,-500.0,0.00055342,120]
[357581899,1744195889729,-500.0,0.00055342,120]
[357581900,1744195889739,-631.31,0.00055342,120]
[357581901,1744195889748,-513.66087603,0.00055342,120]
[357581903,1744195889758,-500.0,0.00055342,120]
[357581904,1744195889767,-512.17426832,0.00055342,120]
[357581905,1744195889776,-507.33627668,0.00055342,120]
[357581906,1744195889785,-500.0,0.00055342,120]
[357581907,1744195889794,-500.0,0.00055342,120]
[357581908,1744195889803,-514.32692528,0.00055342,120]
[357581909,1744195889812,-507.84922623,0.00055342,120]
[357581910,1744195889821,-601.71,0.00055342,120]
[357581911,1744195889830,-536.72939622,0.00055342,120]
[357581912,1744195889839,-511.96468679,0.00055342,120]
[357581913,1744195889848,-580.58,0.00055342,120]
[357581914,1744195889858,-512.18140096,0.00055342,120]
[357581915,1744195889867,-849.78,0.00055342,10]
[357581916,1744195889876,-500.0,0.00055342,120]
[357581917,1744195889885,-500.0,0.00055342,120]
[357581918,1744195889895,-514.74901667,0.00055342,120]
[357581919,1744195889904,-1298.27,0.00055342,120]
[357581920,1744195889913,-500.0,0.00055342,120]
[357581921,1744195889922,-500.0,0.00055342,120]
[357581922,1744195889931,-500.0,0.00055342,2]
[357581923,1744195889940,-542.87236101,0.00055342,120]
[357581924,1744195889949,-732.88,0.00055342,120]
[357581925,1744195889958,-500.0,0.00055342,120]
[357581926,1744195889967,-500.0,0.00055342,120]
[357581927,1744195889976,-1000.0,0.00055342,120]
[357581928,1744195889985,-500.0,0.00055342,120]
[357581929,1744195889994,-500.0,0.00055342,120]
[357581930,1744195890004,-500.0,0.00055342,120]
[357581931,1744195890013,-500.0,0.00055342,120]
[357581932,1744195890023,-500.0,0.00055342,120]
[357581933,1744195890033,-500.0,0.00055342,120]
[357581934,1744195890042,-516.45,0.00055342,30]
[357581935,1744195890051,-500.0,0.00055342,120]
[357581937,1744195890062,-1322.88,0.00055342,120]
[357581938,1744195890071,-500.0,0.00055342,120]
[357581939,1744195890080,-528.18057029,0.00055342,120]
[357581940,1744195890089,-500.0,0.00055342,120]
[357581941,1744195890099,-607.72065972,0.00055342,120]
[357581942,1744195890108,-500.0,0.00055342,120]
[357581943,1744195890117,-573.03,0.00055342,120]
[357581944,1744195890126,-500.0,0.00055342,2]
[357581945,1744195890135,-508.82958358,0.00055342,120]
[357581946,1744195890144,-500.0,0.00055342,120]
[357581947,1744195890153,-1084.65,0.00055342,120]
[357581948,1744195890162,-500.0,0.00055342,120]
[357581949,1744195890171,-709.17,0.00055342,120]
[357581950,1744195890180,-500.0,0.00055342,120]
[357581951,1744195890189,-515.74355618,0.00055342,120]
[357581952,1744195890198,-280.57337491,0.00055342,120]
[357581953,1744195890207,-513.08200293,0.00055342,120]
[357581954,1744195890216,-500.0,0.00055342,120]
[357581955,1744195890225,-500.0,0.00055342,120]
[357581956,1744195890234,-623.56,0.00055342,120]
[357581957,1744195890243,-500.0,0.00055342,120]
[357581958,1744195890252,-500.0,0.00055342,120]
[357581959,1744195890261,-500.0,0.00055342,120]
[357581960,1744195890270,-504.01635373,0.00055342,120]
[357581961,1744195890279,-558.47,0.00055342,120]
[357581962,1744195890288,-500.0,0.00055342,120]
[357581963,1744195890298,-500.0,0.00055342,120]
[357581964,1744195890307,-500.0,0.00055342,120]
[357581965,1744195890317,-199.71006437,0.00055342,120]
[357581966,1744195890326,-529.85853993,0.00055342,120]
[357581967,1744195890335,-2749.74,0.00055342,120]
[357581968,1744195890344,-500.0,0.00055342,120]
[357581969,1744195890353,-519.74627414,0.00055342,120]
[357581970,1744195890362,-500.0,0.00055342,120]
[357581971,1744195890371,-2000.0,0.00055342,2]
[357581972,1744195890380,-677.59,0.00055342,120]
[357581973,1744195890389,-511.00125884,0.00055342,120]
[357581974,1744195890398,-500.0,0.00055342,120]
[357581975,1744195890407,-500.0,0.00055342,120]
[357581976,1744195890416,-500.0,0.00055342,120]
[357581977,1744195890426,-500.0,0.00055342,120]
[357581978,1744195890435,-500.0,0.00055342,120]
[357581979,1744195890444,-500.0,0.00055342,120]
[357581980,1744195890453,-516.60490079,0.00055342,120]
[357581982,1744195890462,-500.0,0.00055342,30]
[357581983,1744195890471,-500.0,0.00055342,120]
[357581984,1744195890481,-500.0,0.00055342,120]
[357581985,1744195890490,-500.0,0.00055342,120]
[357581986,1744195890500,-500.0,0.00055342,120]
[357581987,1744195890509,-500.0,0.00055342,120]
[357581988,1744195890518,-500.0,0.00055342,120]
[357581989,1744195890527,-500.0,0.00055342,120]
[357581990,1744195890537,-678.03,0.00055342,120]
[357581991,1744195890546,-994.85,0.00055342,120]
[357581992,1744195890555,-227.09918388,0.00055342,120]
[357581993,1744195890564,-500.0,0.00055342,120]
[357581994,1744195890580,-520.65342322,0.00055342,120]
[357581995,1744195890590,-631.36,0.00055342,120]
[357581996,1744195890599,-500.0,0.00055342,120]
[357581997,1744195890608,-575.67398606,0.00055342,120]
[357581998,1744195890618,-500.0,0.00055342,120]
[357581999,1744195890627,-500.0,0.00055342,120]
[357582000,1744195890637,-500.0,0.00055342,120]
[357582001,1744195890646,-500.0,0.00055342,120]
[357582002,1744195890657,-520.50633896,0.00055342,120]
[357582003,1744195890667,-500.0,0.00055342,120]
[357582004,1744195890676,-526.9,0.00055342,120]
[357582005,1744195890685,-500.0,0.00055342,120]
[357582006,1744195890694,-500.0,0.00055342,120]
[357582007,1744195890704,-500.0,0.00055342,120]
[357582008,1744195890713,-500.0,0.00055342,120]
[357582009,1744195890722,-500.0,0.00055342,120]
[357582010,1744195890731,-500.0,0.00055342,120]
[357582011,1744195890740,-500.0,0.00055342,120]
[357582012,1744195890752,-698.98,0.00055342,120]
[357582013,1744195890767,-601.71,0.00055342,120]
[357582014,1744195890776,-270.32918117,0.00055342,20]
[357582015,1744195890785,-500.0,0.00055342,120]
[357582016,1744195890795,-500.0,0.00055342,120]
[357582017,1744195890805,-500.0,0.00055342,120]
[357582018,1744195890815,-500.0,0.00055342,120]
[357582019,1744195890825,-500.0,0.00055342,120]
[357582020,1744195890834,-500.0,0.00055342,120]
[357582021,1744195890843,-500.0,0.00055342,120]
[357582023,1744195890853,-500.0,0.00055342,120]
[357582024,1744195890862,-500.0,0.00055342,120]
[357582025,1744195890872,-538.27,0.00055342,120]
[357582026,1744195890880,-500.0,0.00055342,120]
[357582027,1744195890890,-500.0,0.00055342,120]
[357582028,1744195890899,-500.0,0.00055342,120]
[357582029,1744195890908,-500.0,0.00055342,120]
[357582030,1744195890918,-500.0,0.00055342,90]
[357582031,1744195890927,-500.0,0.00055342,120]
[357582032,1744195890936,-500.0,0.00055342,120]
[357582033,1744195890945,-500.0,0.00055342,120]
[357582034,1744195890955,-500.0,0.00055342,120]
[357582035,1744195890964,-500.0,0.00055342,120]
[357582036,1744195890973,-500.0,0.00055342,120]
[357582037,1744195890983,-500.0,0.00055342,120]
[357582038,1744195890993,-828.9,0.00055342,120]
[357582039,1744195891003,-3108.85,0.00055342,120]
[357582040,1744195891012,-500.0,0.00055342,120]
[357582041,1744195891022,-824.44,0.00055342,120]
[357582042,1744195891031,-515.16,0.00055342,120]
[357582043,1744195891041,-500.0,0.00055342,120]
[357582044,1744195891051,-500.0,0.00055342,120]
[357582045,1744195891060,-500.0,0.00055342,120]
[357582046,1744195891070,-500.0,0.00055342,120]
[357582047,1744195891079,-500.0,0.00055342,120]
[357582048,1744195891089,-500.0,0.00055342,120]
[357582049,1744195891098,-500.0,0.00055342,120]
[357582050,1744195891107,-500.0,0.00055342,120]
[357582051,1744195891116,-500.0,0.00055342,120]
[357582052,1744195891126,-500.0,0.00055342,120]
[357582053,1744195891135,-500.0,0.00055342,120]
[357582054,1744195891144,-1859.51,0.00055342,120]
[357582055,1744195891153,-500.0,0.00055342,120]
[357582056,1744195891162,-500.0,0.00055342,120]
[357582058,1744195891171,-500.0,0.00055342,120]
[357582059,1744195891180,-500.0,0.00055342,120]
[357582060,1744195891189,-500.0,0.00055342,120]
[357582061,1744195891198,-219.48,0.00055342,120]
[357582062,1744195891208,-517.36,0.00055342,120]
[357582063,1744195891217,-941.44,0.00055342,120]
[357582064,1744195891227,-500.0,0.00055342,120]
[357582065,1744195891236,-585.91,0.00055342,120]
[357582066,1744195891245,-833.33,0.00055342,120]
[357582067,1744195891254,-500.0,0.00055342,120]
[357582068,1744195891263,-500.0,0.00055342,120]
[357582069,1744195891435,-500.0,0.00055342,120]
[357582070,1744195891445,-500.0,0.00055342,120]
[357582071,1744195891455,-500.0,0.00055342,120]
[357582072,1744195891465,-604.98,0.00055342,120]
[357582073,1744195891474,-540.48,0.00055342,120]
[357582074,1744195891484,-500.0,0.00055342,120]
[357582076,1744195891493,-500.0,0.00055342,120]
[357582077,1744195891503,-516.58,0.00055342,120]
[357582078,1744195891512,-522.33,0.00055342,120]
[357582079,1744195891521,-500.0,0.00055342,120]
[357582080,1744195891530,-500.0,0.00055342,120]
[357582081,1744195891539,-599.74,0.00055342,120]
[357582082,1744195891548,-555.71,0.00055342,120]
[357582083,1744195891557,-635.91637574,0.00055342,120]
[357582084,1744195891566,-670.8,0.00055342,120]
[357582085,1744195891576,-750.9,0.00055342,120]
[357582086,1744195891588,-500.0,0.00055342,120]
[357582087,1744195891597,-500.0,0.00055342,120]
[357582088,1744195891606,-500.0,0.00055342,120]
[357582089,1744195891616,-500.0,0.00055342,120]
[357582090,1744195891627,-500.0,0.00055342,120]
[357582091,1744195891637,-500.0,0.00055342,120]
[357582092,1744195891646,-522.05,0.00055342,120]
[357582093,1744195891658,-500.0,0.00055342,120]
[357582094,1744195891667,-500.0,0.00055342,120]
[357582095,1744195891677,-500.0,0.00055342,120]
[357582096,1744195891686,-526.72668899,0.00055342,120]
[357582097,1744195891696,-1168.02,0.00055342,30]
[357582098,1744195891705,-500.0,0.00055342,120]
[357582099,1744195891714,-882.0,0.00055342,120]
[357582100,1744195891723,-512.55,0.00055342,120]
[357582101,1744195891733,-792.75,0.00055342,120]
[357582102,1744195891742,-500.0,0.00055342,120]
[357582103,1744195891752,-1165.2,0.00055342,120]
[357582104,1744195891762,-500.0,0.00055342,120]
[357582105,1744195891771,-500.0,0.00055342,120]
[357582106,1744195891781,-500.0,0.00055342,120]
[357582108,1744195891791,-2000.0,0.00055342,120]
[357582109,1744195891800,-500.0,0.00055342,120]
[357582110,1744195891809,-500.0,0.00055342,120]
[357582111,1744195891819,-500.0,0.00055342,120]
[357582112,1744195891828,-637.33056715,0.00055342,120]
[357582113,1744195891838,-500.0,0.00055342,120]
[357582114,1744195891848,-500.0,0.00055342,120]
[357582115,1744195891857,-500.0,0.00055342,120]
[357582116,1744195891866,-500.0,0.00055342,120]
[357582117,1744195891876,-598.08484307,0.00055342,120]
[357582118,1744195891885,-500.0,0.00055342,120]
[357582119,1744195891894,-500.0,0.00055342,120]
[357582120,1744195891903,-500.0,0.00055342,120]
[357582121,1744195891913,-631.06,0.00055342,120]
[357582122,1744195891922,-500.0,0.00055342,120]
[357582123,1744195891931,-500.0,0.00055342,120]
[357582124,1744195891941,-300.0,0.00055342,120]
[357582125,1744195891950,-500.0,0.00055342,120]
[357582126,1744195891959,-520.3,0.00055342,120]
[357582127,1744195891969,-500.0,0.00055342,120]
[357582128,1744195891979,-552.88,0.00055342,120]
[357582129,1744195891988,-663.83,0.00055342,120]
[357582130,1744195891997,-533.45,0.00055342,120]
[357582131,1744195892007,-508.82,0.00055342,120]
[357582132,1744195892016,-500.0,0.00055342,120]
[357582133,1744195892025,-500.0,0.00055342,120]
[357582134,1744195892035,-668.34,0.00055342,120]
[357582135,1744195892045,-500.0,0.00055342,120]
[357582136,1744195892054,-500.0,0.00055342,120]
[357582137,1744195892064,-500.0,0.00055342,120]
[357582138,1744195892074,-608.01375447,0.00055342,120]
[357582139,1744195892083,-500.0,0.00055342,120]
[357582140,1744195892093,-788.52,0.00055342,120]
[357582141,1744195892103,-500.0,0.00055342,120]
[357582143,1744195892113,-893.02,0.00055342,120]
[357582144,1744195892123,-500.0,0.00055342,120]
[357582145,1744195892132,-500.0,0.00055342,120]
[357582146,1744195892142,-500.0,0.00055342,120]
[357582147,1744195892152,-518.74585235,0.00055342,120]
[357582148,1744195892161,-863.17,0.00055342,120]
[357582149,1744195892171,-500.0,0.00055342,120]
[357582150,1744195892181,-500.0,0.00055342,120]
[357582151,1744195892190,-500.0,0.00055342,120]
[357582152,1744195892199,-1477.65,0.00055342,100]
[357582153,1744195892209,-500.0,0.00055342,120]
[357582154,1744195892218,-500.0,0.00055342,120]
[357582155,1744195892228,-199.98827807,0.00055342,120]
[357582156,1744195892237,-500.0,0.00055342,120]
[357582157,1744195892247,-500.0,0.00055342,120]
[357582158,1744195892256,-500.0,0.00055342,120]
[357582159,1744195892265,-500.0,0.00055342,120]
[357582160,1744195892274,-520.03,0.00055342,120]
[357582161,1744195892284,-566.0,0.00055342,120]
[357582162,1744195892293,-500.0,0.00055342,120]
[357582163,1744195892303,-500.0,0.00055342,120]
[357582164,1744195892313,-551.11067972,0.00055342,120]
[357582165,1744195892322,-500.0,0.00055342,120]
[357582166,1744195892332,-554.96,0.00055342,120]
[357582167,1744195892341,-500.0,0.00055342,120]
[357582168,1744195892350,-500.0,0.00055342,120]
[357582169,1744195892360,-500.0,0.00055342,120]
[357582170,1744195892369,-500.0,0.00055342,120]
[357582171,1744195892378,-500.0,0.00055342,120]
[357582172,1744195892388,-500.0,0.00055342,120]
[357582173,1744195892397,-639.9,0.00055342,120]
[357582174,1744195892406,-500.0,0.00055342,120]
[357582175,1744195892415,-750.47,0.00055342,120]
[357582176,1744195892427,-998.7,0.00055342,120]
[357582178,1744195892436,-618.28,0.00055342,120]
[357582179,1744195892445,-640.66,0.00055342,120]
[357582180,1744195892454,-500.0,0.00055342,120]
[357582181,1744195892463,-500.0,0.00055342,120]
[357582182,1744195892474,-604.57,0.00055342,120]
[357582183,1744195892483,-929.93,0.00055342,120]
[357582184,1744195892493,-500.0,0.00055342,120]
[357582185,1744195892503,-500.0,0.00055342,120]
[357582186,1744195892513,-588.0,0.00055342,120]
[357582187,1744195892522,-500.0,0.00055342,120]
[357582188,1744195892530,-1502.32,0.00055342,120]
[357582189,1744195892540,-715.0,0.00055342,120]
[357582190,1744195892549,-1052.24,0.00055342,120]
[357582191,1744195892558,-500.0,0.00055342,120]
[357582192,1744195892568,-500.0,0.00055342,120]
[357582193,1744195892581,-1472.57,0.00055342,120]
[357582194,1744195892590,-500.0,0.00055342,120]
[357582195,1744195892599,-500.0,0.00055342,120]
[357582196,1744195892609,-850.48,0.00055342,120]
[357582197,1744195892619,-500.0,0.00055342,120]
[357582198,1744195892628,-500.0,0.00055342,120]
[357582199,1744195892637,-500.0,0.00055342,120]
[357582200,1744195892647,-500.0,0.00055342,120]
[357582201,1744195892657,-500.0,0.00055342,120]
[357582202,1744195892666,-500.0,0.00055342,120]
[357582203,1744195892676,-500.0,0.00055342,120]
[357582204,1744195892686,-1181.23,0.00055342,120]
[357582205,1744195892695,-500.0,0.00055342,120]
[357582206,1744195892705,-4288.52,0.00055342,120]
[357582207,1744195892714,-500.0,0.00055342,120]
[357582208,1744195892723,-500.0,0.00055342,120]
[357582209,1744195892733,-500.0,0.00055342,120]
[357582210,1744195892742,-1643.36,0.00055342,120]
[357582211,1744195892752,-500.0,0.00055342,120]
[357582212,1744195892762,-500.0,0.00055342,120]
[357582213,1744195892771,-500.0,0.00055342,120]
[357582215,1744195892780,-500.0,0.00055342,120]
[357582216,1744195892789,-500.0,0.00055342,120]
[357582217,1744195892798,-500.0,0.00055342,120]
[357582218,1744195892807,-500.0,0.00055342,120]
[357582219,1744195892817,-500.0,0.00055342,120]
[357582220,1744195892827,-799.99,0.00055342,120]
[357582221,1744195892835,-5946.0,0.00055342,120]
[357582222,1744195892844,-638.02,0.00055342,120]
[357582223,1744195892853,-500.0,0.00055342,120]
[357582224,1744195892862,-500.0,0.00055342,120]
[357582225,1744195892871,-500.0,0.00055342,120]
[357582226,1744195892880,-573.08,0.00055342,120]
[357582227,1744195892890,-533.63,0.00055342,120]
[357582228,1744195892899,-514.83,0.00055342,120]
[357582229,1744195892908,-541.28,0.00055342,120]
[357582230,1744195892916,-500.0,0.00055342,120]
[357582231,1744195892926,-1029.93,0.00055342,120]
[357582232,1744195892935,-500.0,0.00055342,120]
[357582233,1744195892944,-500.0,0.00055342,120]
[357582234,1744195892953,-500.0,0.00055342,120]
[357582235,1744195892962,-500.0,0.00055342,120]
[357582236,1744195892971,-500.0,0.00055342,120]
[357582237,1744195892980,-500.0,0.00055342,120]
[357582238,1744195892989,-500.0,0.00055342,120]
[357582239,1744195892998,-726.94,0.00055342,120]
[357582240,1744195893007,-641.58,0.00055342,120]
[357582241,1744195893025,-569.14085259,0.00055342,120]
[357582242,1744195893035,-500.0,0.00055342,120]
[357582243,1744195893046,-500.0,0.00055342,120]
[357582244,1744195893056,-476.07782917,0.00055342,120]
[357582245,1744195893066,-625.51,0.00055342,120]
[357582246,1744195893076,-500.0,0.00055342,120]
[357582247,1744195893086,-500.0,0.00055342,120]
[357582248,1744195893095,-500.0,0.00055342,120]
[357582249,1744195893104,-500.0,0.00055342,120]
[357582250,1744195893115,-904.84,0.00055342,120]
[357582251,1744195893124,-500.0,0.00055342,120]
[357582252,1744195893134,-525.03788458,0.00055342,120]
[357582254,1744195893143,-500.0,0.00055342,120]
[357582255,1744195893153,-2130.32,0.00055342,120]
[357582256,1744195893162,-500.0,0.00055342,120]
[357582257,1744195893172,-676.77,0.00055342,120]
[357582258,1744195893181,-500.0,0.00055342,120]
[357582259,1744195893190,-500.0,0.00055342,120]
[357582260,1744195893200,-805.75,0.00055342,120]
[357582261,1744195893209,-500.0,0.00055342,120]
[357582262,1744195893219,-1045.7471011,0.00055342,30]
[357582263,1744195893228,-500.0,0.00055342,120]
[357582264,1744195893238,-500.0,0.00055342,120]
[357582265,1744195893247,-1442.39,0.00055342,120]
[357582266,1744195893257,-1009.21,0.00055342,120]
[357582267,1744195893267,-500.0,0.00055342,120]
[357582268,1744195893276,-500.0,0.00055342,120]
[357582269,1744195893285,-500.0,0.00055342,120]
[357582270,1744195893294,-500.0,0.00055342,120]
[357582271,1744195893303,-500.0,0.00055342,120]
[357582272,1744195893313,-500.0,0.00055342,120]
[357582273,1744195893323,-500.0,0.00055342,120]
[357582274,1744195893333,-874.43,0.00055342,120]
[357582275,1744195893343,-1000.0,0.00055342,120]
[357582276,1744195893352,-2521.93,0.00055342,120]
[357582277,1744195893363,-500.0,0.00055342,120]
[357582278,1744195893372,-1924.03,0.00055342,120]
[357582279,1744195893382,-500.0,0.00055342,120]
[357582280,1744195893391,-500.0,0.00055342,120]
[357582281,1744195893400,-500.0,0.00055342,120]
[357582282,1744195893410,-691.1,0.00055342,120]
[357582283,1744195893420,-500.0,0.00055342,120]
[357582284,1744195893430,-500.0,0.00055342,120]
[357582285,1744195893440,-500.0,0.00055342,8]
[357582286,1744195893450,-1250.62,0.00055342,120]
[357582287,1744195893460,-500.0,0.00055342,120]
[357582289,1744195893470,-1075.37,0.00055342,120]
[357582290,1744195893480,-211.97567621,0.00055342,120]
[357582291,1744195893490,-500.0,0.00055342,120]
[357582292,1744195893500,-977.75,0.00055342,120]
[357582293,1744195893510,-500.0,0.00055342,120]
[357582294,1744195893520,-1018.61,0.00055342,118]
[357582295,1744195893530,-500.0,0.00055342,120]
[357582296,1744195893539,-500.0,0.00055342,120]
[357582297,1744195893549,-500.0,0.00055342,120]
[357582298,1744195893558,-500.0,0.00055342,120]
[357582299,1744195893569,-500.0,0.00055342,120]
[357582300,1744195893581,-1596.01,0.00055342,120]
[357582301,1744195893590,-635.16,0.00055342,120]
[357582302,1744195893600,-500.0,0.00055342,120]
[357582303,1744195893610,-500.0,0.00055342,120]
[357582304,1744195893621,-617.04,0.00055342,120]
[357582305,1744195893631,-500.0,0.00055342,120]
[357582306,1744195893640,-500.0,0.00055342,120]
[357582307,1744195893651,-500.0,0.00055342,120]
[357582308,1744195893661,-557.76,0.00055342,120]
[357582309,1744195893671,-512.28,0.00055342,120]
[357582310,1744195893681,-500.0,0.00055342,120]
[357582311,1744195893691,-514.41,0.00055342,120]
[357582312,1744195893700,-645.6,0.00055342,120]
[357582313,1744195893710,-500.0,0.00055342,120]
[357582314,1744195893719,-500.0,0.00055342,120]
[357582315,1744195893729,-1106.15,0.00055342,120]
[357582316,1744195893738,-500.0,0.00055342,120]
[357582317,1744195893749,-500.0,0.00055342,120]
[357582318,1744195893758,-500.0,0.00055342,120]
[357582319,1744195893767,-624.98,0.00055342,120]
[357582320,1744195893776,-500.0,0.00055342,120]
[357582321,1744195893786,-613.02,0.00055342,120]
[357582322,1744195893795,-500.0,0.00055342,120]
[357582323,1744195893805,-500.0,0.00055342,120]
[357582324,1744195893815,-500.0,0.00055342,120]
[357582325,1744195893824,-500.0,0.00055342,120]
[357582326,1744195893834,-500.0,0.00055342,120]
[357582328,1744195893845,-500.0,0.00055342,120]
[357582329,1744195893854,-1658.57,0.00055342,120]
[357582330,1744195893864,-500.0,0.00055342,120]
[357582331,1744195893873,-500.0,0.00055342,120]
[357582332,1744195893882,-516.87,0.00055342,120]
[357582333,1744195893891,-500.0,0.00055342,120]
[357582334,1744195893901,-788.64,0.00055342,30]
[357582335,1744195893911,-869.58,0.00055342,120]
[357582336,1744195893921,-705.63,0.00055342,120]
[357582337,1744195893930,-2460.31,0.00055342,120]
[357582338,1744195894103,-500.0,0.00055342,120]
[357582339,1744195894113,-500.0,0.00055342,120]
[357582340,1744195894123,-612.72,0.00055342,120]
[357582341,1744195894133,-500.0,0.00055342,120]
[357582342,1744195894143,-500.0,0.00055342,120]
[357582343,1744195894154,-151.32846389,0.00055342,120]
[357582344,1744195894163,-500.0,0.00055342,120]
[357582345,1744195894173,-500.0,0.00055342,120]
[357582346,1744195894183,-500.0,0.00055342,120]
[357582347,1744195894193,-984.65,0.00055342,120]
[357582348,1744195894202,-1148.39,0.00055342,120]
[357582349,1744195894213,-500.0,0.00055342,120]
[357582350,1744195894223,-25220.93,0.00055342,120]
[357582351,1744195894232,-595.13,0.00055342,120]
[357582352,1744195894241,-920.8,0.00055342,120]
[357582353,1744195894251,-500.0,0.00055342,120]
[357582354,1744195894260,-500.0,0.00055342,120]
[357582355,1744195894269,-316.81705994,0.00055342,120]
[357582356,1744195894279,-500.0,0.00055342,120]
[357582357,1744195894288,-500.0,0.00055342,120]
[357582358,1744195894298,-525.91,0.00055342,120]
[357582359,1744195894307,-500.0,0.00055342,120]
[357582360,1744195894317,-500.0,0.00055342,120]
[357582361,1744195894327,-667.99,0.00055342,120]
[357582362,1744195894337,-1606.66,0.00055342,120]
[357582363,1744195894347,-500.0,0.00055342,120]
[357582364,1744195894358,-500.0,0.00055342,3]
[357582366,1744195894367,-572.71,0.00055342,120]
[357582367,1744195894377,-500.0,0.00055342,120]
[357582368,1744195894387,-500.0,0.00055342,120]
[357582369,1744195894397,-612.25,0.00055342,120]
[357582370,1744195894406,-799.59,0.00055342,120]
[357582371,1744195894415,-500.0,0.00055342,120]
[357582372,1744195894424,-616.01,0.00055342,120]
[357582373,1744195894433,-500.0,0.00055342,120]